bitfinex-derivatives/quotes_ETHF0:USTF0_20250317
["timestamp","ask_amount","ask_price","bid_price","bid_amount"]
[1742216818550,1.05199,1901.3,1901.2,34.37601]
[1742216818751,4.3496,1901.5,1901.2,33.324]
[1742216818946,5.40148,1901.5,1901.4,1.05194]
[1742216819249,5.40148,1901.5,1901.3,4.0583]
[1742216819250,1.05185,1901.6,1901.5,1.05186]
[1742216819449,5.44295,1901.6,1901.5,5.20886]
[1742216820147,4.3911,1901.6,1901.5,5.20886]
[1742216820346,3.2078,1901.7,1901.6,1.05183]
[1742216820550,3.2078,1901.7,1901.6,5.11013]
[1742216820750,3.2078,1901.7,1901.2,29.167]
[1742216820949,1.05194,1901.4,1901.3,4.157]
[1742216821446,1.05199,1901.3,1901.2,30.21903]
[1742216821654,4.58,1901.3,1901.2,34.37603]
[1742216822152,7.7878,1901.3,1901.0,23.92750747]
[1742216822347,4.58,1901.3,1901.2,1.05205]
[1742216822548,45.38,1901.3,1901.2,1.05205]
[1742216822746,3.2078,1901.6,1901.2,4.157]
[1742216822952,5.63179,1901.7,1901.6,1.05183]
[1742216823446,1.05183,1901.6,1901.5,5.20887]
[1742216823645,4.58,1901.7,1901.6,4.6964]
[1742216823847,1.0517,1901.9,1901.6,4.6964]
[1742216824058,12.0761,1902.0,1901.6,4.6964]
[1742216824250,3.2078,1902.0,1901.9,1.05166]
[1742216824446,3.2078,1902.0,1901.9,4.157]
[1742216824645,3.2078,1902.0,1901.9,5.20866]
[1742216824646,8.591,1902.0,1901.9,5.20866]
[1742216824847,8.591,1902.0,1901.9,4.157]
[1742216825256,1.05177,1901.7,1901.6,4.6964]
[1742216825553,1.05183,1901.6,1901.5,5.20887]
[1742216825851,1.05196,1901.4,1901.3,1.05197]
[1742216826055,3.2078,1901.5,1901.3,1.05195]
[1742216826247,4.25972,1901.5,1901.2,4.157]
[1742216826442,3.2078,1901.5,1901.4,1.05194]
[1742216826657,4.2596,1901.7,1901.3,2.62995]
[1742216826848,3.2078,1901.7,1901.1,3.2078]
[1742216827053,4.61915892,1901.5,1901.1,2.63026]
[1742216827256,4.25972,1901.5,1901.4,1.05194]
[1742216827554,5.38347,1901.6,1901.5,1.05188]
[1742216828047,4.25959,1901.7,1901.6,1.05183]
[1742216828355,5.42565,1901.8,1901.7,1.05177]
[1742216828555,4.0775,1901.9,1901.8,1.05171]
[1742216828748,1.05177,1901.7,1901.6,5.20881]
[1742216829250,3.2078,1901.8,1901.6,6.78656]
[1742216829450,8.63334,1902.0,1901.8,1.05167]
[1742216829756,1.05166,1901.9,1901.8,1.05167]
[1742216830054,1.05171,1901.8,1901.7,5.20773]
[1742216830253,1.05171,1901.8,1901.7,4.156]
[1742216830451,1.05171,1901.8,1901.7,5.20777]
[1742216830647,5.42559,1901.9,1901.8,1.05171]
[1742216830846,3.2078,1902.0,1901.9,1.05166]
[1742216831855,0.00788747,1902.2,1902.1,1.05155]
[1742216832155,0.00788747,1902.2,1902.1,5.20755]
[1742216832356,4.27348747,1902.2,1902.1,5.20755]
[1742216833148,0.00788747,1902.2,1902.1,5.20755]
[1742216834245,0.00788747,1902.2,1902.1,17.45205]
[1742216834450,0.00788747,1902.2,1902.1,19.95205]
[1742216834663,25.42985637,1902.7,1902.6,1.05127]
[1742216834849,22.22205637,1902.7,1902.6,5.20727]
[1742216835362,22.22205637,1902.7,1902.6,4.156]
[1742216835652,1.0513,1902.6,1902.4,29.169]
[1742216835858,4.4002,1902.6,1902.5,1.05133]
[1742216836655,5.45147,1902.6,1902.5,1.05133]
[1742216836855,4.4002,1902.6,1902.5,1.05133]
[1742216837958,3.2078,1902.7,1902.6,1.05127]
[1742216838557,4.25903,1902.7,1902.5,1.05128]
[1742216838758,8.60833,1902.7,1902.5,1.05133]
[1742216839060,8.60833,1902.7,1902.6,1.05127]
[1742216839354,0.00788747,1902.8,1902.7,1.05122]
[1742216839560,0.00788747,1902.8,1902.7,5.20522]
[1742216840958,1.05904747,1902.8,1902.7,8.7296]
[1742216841258,5.67764747,1902.8,1902.7,8.7296]
[1742216841450,5.67764747,1902.8,1902.7,9.78082]
[1742216841856,5.67764747,1902.8,1902.7,8.7296]
[1742216842167,5.67764747,1902.8,1902.7,4.154]
[1742216842350,1.05122,1902.7,1902.6,4.154]
[1742216842551,5.66982,1902.7,1902.6,4.154]
[1742216842854,4.6186,1902.7,1902.6,5.20527]
[1742216843852,0.00788747,1902.8,1902.7,1.05122]
[1742216844052,0.00788747,1902.8,1902.7,5.64912]
[1742216845057,5.39734747,1902.8,1902.7,4.5979]
[1742216845657,5.39734747,1902.8,1902.7,5.64912]
[1742216845857,4.34618747,1902.8,1902.7,5.64912]
[1742216846551,0.00788747,1902.8,1902.7,5.64912]
[1742216846751,0.00788747,1902.8,1902.7,1.05122]
[1742216847151,4.69318747,1902.8,1902.7,1.05122]
[1742216847862,4.69318747,1902.8,1902.6,3.62224175]
[1742216848063,1.05122,1902.7,1902.6,2.57101175]
[1742216848560,5.73652,1902.7,1902.6,2.57101175]
[1742216848760,5.73655,1902.7,1902.5,4.152]
[1742216848962,4.6853,1902.7,1902.6,1.05127]
[1742216850061,4.6853,1902.7,1902.6,5.49957]
[1742216850258,8.94432,1902.7,1902.6,4.4483]
[1742216850558,8.94432,1902.7,1902.6,1.05127]
[1742216850864,1.05132,1902.6,1902.4,29.169]
[1742216851063,4.6683,1902.5,1902.4,34.37238]
[1742216851565,7.6262,1902.7,1902.6,1.05127]
[1742216851864,0.00788747,1902.8,1902.7,1.05122]
[1742216852061,0.00788747,1902.8,1902.7,5.20322]
[1742216852360,1.05904747,1902.8,1902.7,5.20322]
[1742216852568,4.63588747,1902.8,1902.7,5.20322]
[1742216854269,0.00788747,1902.8,1902.7,5.20322]
[1742216858266,0.00788747,1902.8,1902.7,7.70322]
[1742216858766,0.00788747,1902.8,1902.7,12.29902]
[1742216859162,22.22205637,1903.3,1903.2,1.05094]
[1742216859369,22.22205637,1903.3,1903.2,5.20094]
[1742216859764,26.88575637,1903.3,1903.2,5.20094]
[1742216859958,27.84963647,1903.3,1903.1,29.154]
[1742216860163,1.05094,1903.2,1903.1,30.20498]
[1742216860364,5.62809002,1903.2,1903.1,30.20498]
[1742216860561,4.6637,1903.2,1903.1,30.20498]
[1742216862468,0.00788747,1903.4,1903.3,5.20089]
[1742216862668,1.05871747,1903.4,1903.3,4.15]
[1742216862967,1.05094,1903.2,1903.1,34.35397]
[1742216863173,2.01552627,1903.3,1903.2,1.05093]
[1742216863373,5.42040627,1903.3,1903.2,1.05093]
[1742216863573,4.4558,1903.3,1903.2,1.05093]
[1742216863771,4.4558,1903.3,1903.1,33.303]
[1742216863772,3.21568747,1903.4,1903.3,1.05089]
[1742216864070,4.46368747,1903.4,1903.3,1.05089]
[1742216865484,7.8746,1903.6,1903.5,1.05078]
[1742216865677,8.83860911,1903.6,1903.5,1.05078]
[1742216865886,4.17180911,1903.6,1903.5,1.05078]
[1742216866183,5.68341,1903.9,1903.5,4.25858]
[1742216866387,0.96353664,1903.8,1903.7,1.05066]
[1742216866581,0.96353664,1903.8,1903.7,5.19866]
[1742216866781,1.05061,1903.8,1903.7,5.19866]
[1742216866982,0.96353664,1903.8,1903.7,5.19866]
[1742216867287,4.25841,1903.8,1903.7,4.148]
[1742216867489,5.22194664,1903.8,1903.7,4.148]
[1742216867791,6.05852937,1903.8,1903.7,4.148]
[1742216867987,5.22194664,1903.8,1903.7,4.148]
[1742216868189,0.96353664,1903.8,1903.7,5.19866]
[1742216868389,0.00788747,1903.9,1903.8,1.05061]
[1742216868690,4.30388747,1903.9,1903.8,1.05061]
[1742216868888,0.00788747,1903.9,1903.8,1.05061]
[1742216870291,0.00788747,1903.9,1903.8,5.39921]
[1742216870890,0.00788747,1903.9,1903.8,9.80161]
[1742216871494,0.00788747,1903.9,1903.8,38.94661]
[1742216872301,5.76943747,1903.9,1903.8,33.5474]
[1742216872496,4.71888747,1903.9,1903.8,34.59801]
[1742216873597,5.76943747,1903.9,1903.8,34.59801]
[1742216873994,4.71888747,1903.9,1903.8,34.59801]
[1742216876996,4.71888747,1903.9,1903.8,30.19561]
[1742216877192,4.71888747,1903.9,1903.8,34.34061]
[1742216880495,0.00788747,1903.9,1903.8,34.34061]
[1742216883089,4.56248747,1903.9,1903.8,34.34061]
[1742216883300,5.61303747,1903.9,1903.8,34.34061]
[1742216883496,4.56248747,1903.9,1903.8,34.34061]
[1742216885905,0.00788747,1903.9,1903.8,34.34061]
[1742216887708,4.82108747,1903.9,1903.8,34.34061]
[1742216888208,8.77723,1904.2,1903.8,33.29]
[1742216888405,7.7268,1904.2,1904.1,1.05044]
[1742216888600,9.74024742,1904.2,1904.1,1.05044]
[1742216888803,8.68982742,1904.2,1904.1,1.05044]
[1742216889001,8.68982742,1904.2,1904.1,5.19344]
[1742216889302,3.2078,1904.4,1904.3,1.05033]
[1742216889503,4.17094627,1904.4,1904.3,1.05033]
[1742216889702,3.2078,1904.4,1904.3,1.05033]
[1742216890007,0.00788747,1904.5,1904.4,1.05028]
[1742216890311,0.00788747,1904.5,1904.4,5.19228]
[1742216890807,0.00788747,1904.5,1904.4,9.60538]
[1742216891008,0.00788747,1904.5,1904.4,17.49158]
[1742216891313,0.00788747,1904.5,1904.4,8.5551]
[1742216891604,1.05810747,1904.5,1904.4,8.5551]
[1742216891999,0.00788747,1904.5,1904.4,9.60538]
[1742216892195,4.75428747,1904.5,1904.4,9.60538]
[1742216892400,5.80450747,1904.5,1904.4,8.5551]
[1742216892905,4.75428747,1904.5,1904.4,9.60538]
[1742216893104,9.01230747,1904.5,1904.4,4.142]
[1742216893305,14.57761789,1904.5,1904.4,4.142]
[1742216893608,15.41406963,1904.5,1904.4,4.142]
[1742216893795,0.97139789,1904.5,1904.4,5.19228]
[1742216893999,0.00788747,1904.5,1904.4,5.19228]
[1742216894611,0.00788747,1904.5,1904.4,14.62258]
[1742216896304,0.00788747,1904.5,1904.4,9.85528]
[1742216897711,0.00788747,1904.5,1904.4,12.35528]
[1742216897906,3.2078,1905.4,1904.5,2.62551]
[1742216898211,7.7823,1905.2,1904.6,37.0]
[1742216898419,7.7823,1905.2,1904.7,4.14]
[1742216898420,1.05008,1904.8,1904.7,4.14]
[1742216898726,1.05004,1904.9,1904.7,5.1901]
[1742216899013,4.57968457,1905.0,1904.9,1.05]
[1742216899216,4.57968457,1905.0,1904.9,5.19]
[1742216899410,0.00518457,1905.0,1904.9,5.19]
[1742216900210,0.00518457,1905.0,1904.9,9.8532]
[1742216900801,0.00518457,1905.0,1904.9,12.3532]
[1742216901210,0.00518457,1905.0,1904.9,9.8532]
[1742216902312,0.00518457,1905.0,1904.9,12.3532]
[1742216903113,0.00518457,1905.0,1904.9,9.8532]
[1742216904115,0.00518457,1905.0,1904.9,12.3532]
[1742216904909,0.00518457,1905.0,1904.9,9.8532]
[1742216907405,4.57e-06,1905.0,1904.9,12.3532]
[1742216909215,4.5996,1905.6,1905.5,1.04967]
[1742216909417,4.5996,1905.6,1905.5,5.18567]
[1742216909623,4.5996,1905.6,1905.5,4.136]
[1742216909920,13.5122,1905.6,1905.5,5.18567]
[1742216910117,13.5122,1905.6,1905.5,9.91557]
[1742216910820,8.9126,1905.6,1905.5,9.91557]
[1742216911123,4.4386,1905.6,1905.5,9.91557]
[1742216911715,4.474,1905.8,1905.7,1.04956]
[1742216912317,5.52354,1905.8,1905.6,0.00788747]
[1742216912520,4.474,1905.8,1905.7,1.04956]
[1742216913125,7.9311,1905.9,1905.8,1.04951]
[1742216913327,7.9311,1905.9,1905.8,5.18451]
[1742216914322,7.9311,1905.9,1905.8,4.135]
[1742216914526,7.9311,1905.9,1905.8,5.18451]
[1742216914721,8.98055,1905.9,1905.8,4.135]
[1742216914924,8.98055,1905.9,1905.8,5.18451]
[1742216914925,7.9311,1905.9,1905.8,5.18451]
[1742216915123,8.98055,1905.9,1905.8,4.135]
[1742216916626,7.9311,1905.9,1905.8,5.18451]
[1742216917020,4.7233,1905.9,1905.8,5.18451]
[1742216918120,5.77275,1905.9,1905.7,1.04953]
[1742216918322,4.7233,1905.9,1905.8,4.133]
[1742216918721,5.77275,1905.9,1905.8,4.133]
[1742216919019,4.7233,1905.9,1905.8,4.133]
[1742216919227,1.04955,1905.8,1905.6,0.00788747]
[1742216919520,5.60886,1905.7,1905.6,1.05744747]
[1742216919726,9.3373,1905.7,1905.6,5.19044747]
[1742216921124,7.6875,1906.0,1905.9,1.04945]
[1742216921331,8.7369,1906.0,1905.9,4.133]
[1742216921924,1.04953,1905.8,1905.7,4.133]
[1742216922224,1.04953,1905.8,1905.6,0.00788747]
[1742216922430,4.7395,1905.7,1905.6,1.05750747]
[1742216922627,4.7395,1905.7,1905.6,5.18950747]
[1742216922823,7.9473,1905.7,1905.6,4.13988747]
[1742216923027,7.9473,1905.7,1905.6,5.18950747]
[1742216923525,4.7395,1905.7,1905.6,5.18950747]
[1742216925432,3.2078,1905.9,1905.8,1.04951]
[1742216925628,7.8931,1905.9,1905.8,1.04951]
[1742216926235,8.94258,1905.9,1905.7,1.04952]
[1742216926423,8.94258,1905.9,1905.8,1.04951]
[1742216926424,4.6853,1905.9,1905.8,1.04951]
[1742216927129,9.90473784,1905.9,1905.7,1.04952]
[1742216927327,9.90473784,1905.9,1905.8,1.04951]
[1742216927328,8.94257,1905.9,1905.8,1.04951]
[1742216927539,9.90477612,1905.9,1905.7,1.04956]
[1742216927730,7.8931,1905.9,1905.8,1.04951]
[1742216927935,4.6853,1905.9,1905.8,1.04951]
[1742216929324,5.73479,1905.9,1905.6,8.70578747]
[1742216929535,5.73479,1905.9,1905.8,1.04951]
[1742216930150,4.6853,1905.9,1905.6,8.70578747]
[1742216930332,4.6853,1905.9,1905.8,1.04951]
[1742216931525,5.73475,1905.9,1905.7,5.51123]
[1742216931829,8.94255,1905.9,1905.8,1.04951]
[1742216933836,7.8931,1905.9,1905.8,1.04951]
[1742216934032,4.6853,1905.9,1905.8,1.04951]
[1742216935432,8.941,1906.0,1905.9,1.04945]
[1742216935737,13.4812,1906.0,1905.9,1.04945]
[1742216936238,14.44461629,1906.0,1905.9,1.04945]
[1742216936739,15.49401629,1906.0,1905.9,5.17845]
[1742216936938,14.44461629,1906.0,1905.9,5.17845]
[1742216938036,15.49401629,1906.0,1905.9,5.17845]
[1742216938237,16.33122947,1906.0,1905.9,5.17845]
[1742216938939,15.28182947,1906.0,1905.9,5.17845]
[1742216939738,0.96341629,1906.0,1905.9,5.17845]
[1742216940045,3.2078,1906.1,1906.0,1.0494]
[1742216940236,5.22167897,1906.1,1906.0,5.6341]
[1742216940439,8.79853897,1906.1,1906.0,5.6341]
[1742216941236,7.834,1906.1,1906.0,5.6341]
[1742216941441,3.2078,1906.5,1906.4,1.04918]
[1742216941736,4.25692,1906.5,1906.4,4.128]
[1742216941941,2.85121,1906.5,1906.4,5.17718]
[1742216942330,7.45924677,1906.5,1906.4,5.17718]
[1742216942531,8.50836677,1906.5,1906.4,5.17718]
[1742216942735,10.68521,1906.5,1906.4,4.128]
[1742216943547,10.68521,1906.5,1906.4,5.17718]
[1742216943842,6.42829,1906.5,1906.4,5.17718]
[1742216944038,8.88312,1906.5,1906.4,4.128]
[1742216944247,6.63987962,1906.5,1906.4,5.17718]
[1742216944542,6.63987962,1906.5,1906.4,4.127]
[1742216944543,10.68410009,1906.5,1906.4,4.127]
[1742216944743,1.04921,1906.4,1906.2,4.127]
[1742216944944,4.5405,1906.3,1906.2,9.79369]
[1742216945134,4.5405,1906.3,1906.2,5.66669]
[1742216945334,0.96455962,1906.4,1906.3,1.04923]
[1742216945545,1.02954362,1906.5,1906.4,1.04918]
[1742216945731,0.96306111,1906.5,1906.4,1.04918]
[1742216945936,4.5405,1906.5,1906.4,1.04918]
[1742216946147,2.01216111,1906.6,1906.2,11.36655]
[1742216946332,9.07172,1906.5,1906.4,1.04913]
[1742216946531,10.87083397,1906.5,1906.2,8.7434]
[1742216946736,0.96306111,1906.4,1906.3,1.04923]
[1742216946932,5.77786111,1906.4,1906.3,1.04923]
[1742216947536,6.82704111,1906.4,1906.3,1.04923]
[1742216947736,6.82704111,1906.4,1906.0,9.4526]
[1742216947737,5.77786111,1906.4,1906.0,9.4526]
[1742216947939,12.4161,1906.3,1906.1,8.7092]
[1742216948145,12.4161,1906.3,1906.2,5.63249]
[1742216948340,1.04929,1906.2,1906.1,5.17531]
[1742216948647,0.96241744,1906.2,1906.1,5.17531]
[1742216948949,9.2083,1906.3,1906.2,1.04929]
[1742216949250,10.17066833,1906.3,1906.2,5.63249]
[1742216949447,5.39256833,1906.3,1906.2,5.63249]
[1742216949646,0.96236833,1906.4,1906.3,1.04923]
[1742216949850,7.08351411,1906.5,1906.4,1.04918]
[1742216950239,2.84711732,1906.5,1906.4,1.04918]
[1742216950441,2.84711732,1906.5,1906.3,4.125]
[1742216950442,6.05492732,1906.5,1906.3,5.17419]
[1742216950837,1.79796732,1906.5,1906.4,1.04918]
[1742216951055,0.96236833,1906.5,1906.4,1.04918]
[1742216951551,0.96236833,1906.5,1906.3,4.125]
[1742216951552,2.01105032,1906.5,1906.3,8.7051]
[1742216951748,0.96190032,1906.5,1906.4,1.04918]
[1742216951945,7.9188,1906.6,1906.5,1.04912]
[1742216952145,9.9295286,1906.6,1906.4,1.04915]
[1742216952347,2.01067803,1906.5,1906.3,9.7543]
[1742216952549,3.2078,1906.4,1906.0,10.67438]
[1742216952853,3.2078,1906.4,1906.3,1.04923]
[1742216953251,4.16933803,1906.4,1906.3,1.04923]
[1742216954955,3.2078,1906.4,1906.3,1.04923]
[1742216955355,3.2078,1906.4,1906.1,6.74735]
[1742216955356,4.4355,1906.5,1906.4,1.04918]
[1742216955655,0.9615589,1906.5,1906.4,5.17318]
[1742216955851,3.2078,1906.6,1906.5,1.04912]
[1742216956150,1.98925479,1906.8,1906.7,1.04901]
[1742216956357,0.9614678,1906.8,1906.7,5.17201]
[1742216956850,7.8373,1906.9,1906.8,1.04896]
[1742216957052,3.2078,1906.9,1906.7,8.5208]
[1742216957251,4.25672,1906.9,1906.7,9.56977]
[1742216957453,1.04896,1906.8,1906.7,4.123]
[1742216957651,5.67846,1906.8,1906.7,4.123]
[1742216958954,4.6295,1906.8,1906.7,5.17201]
[1742216959147,5.67846,1906.8,1906.7,4.123]
[1742216960751,1.04901,1906.7,1906.6,0.00786658]
[1742216960956,9.03241,1906.7,1906.6,0.00786658]
[1742216961848,1.04912,1906.5,1906.4,53.01662]
[1742216962055,4.25692,1906.5,1906.4,23.91962]
[1742216962860,4.3433791,1906.5,1906.4,9.27192]
[1742216963060,4.3433796,1906.5,1906.4,9.27192]
[1742216963461,4.25692,1906.5,1906.4,9.27192]
[1742216964352,4.34337554,1906.5,1906.4,9.27192]
[1742216964555,4.25692,1906.5,1906.4,9.27192]
[1742216965056,3.2078,1906.5,1906.4,10.3211]
[1742216965359,4.25692,1906.5,1906.4,19.2175]
[1742216965555,3.2078,1906.5,1906.4,19.2175]
[1742216965956,7.6024,1906.5,1906.4,19.2175]
[1742216966156,8.65152,1906.5,1906.4,9.94558]
[1742216966662,7.6024,1906.5,1906.4,9.94558]
[1742216967059,8.65152,1906.5,1906.4,9.94558]
[1742216967361,7.6024,1906.5,1906.4,9.94558]
[1742216967563,0.00779695,1906.6,1906.5,1.04912]
[1742216967763,0.00779695,1906.6,1906.5,5.59092]
[1742216968060,5.73916695,1906.6,1906.5,5.59092]
[1742216968557,4.69009695,1906.6,1906.5,5.59092]
[1742216969265,0.00779695,1906.6,1906.5,5.59092]
[1742216970659,4.8154,1907.1,1906.5,5.59092]
[1742216970660,3.2078,1907.2,1906.5,49.8266]
[1742216970857,3.2078,1907.0,1906.6,9.2951]
[1742216971070,4.5469,1906.9,1906.7,9.62987]
[1742216971259,4.5469,1906.9,1906.8,4.4609]
[1742216971564,0.96218738,1906.9,1906.8,4.4609]
[1742216971759,4.5469,1906.9,1906.8,5.50986]
[1742216972066,3.2078,1907.0,1906.9,1.0489]
[1742216972260,4.5469,1907.1,1906.9,4.4609]
[1742216972463,5.50887431,1907.1,1907.0,4.119]
[1742216972759,7.9018,1907.2,1907.0,4.119]
[1742216972967,6.55771152,1907.1,1907.0,4.119]
[1742216973165,47.35771152,1907.1,1907.0,4.119]
[1742216973363,49.22105974,1907.1,1907.0,4.119]
[1742216973562,1.04901,1906.7,1906.6,8.9532]
[1742216973765,3.2078,1906.7,1906.6,13.5129]
[1742216973959,4.25681,1906.7,1906.6,13.5129]
[1742216974161,8.69421,1906.7,1906.6,13.5129]
[1742216974468,8.60722152,1906.7,1906.6,14.56197]
[1742216975169,7.9606,1906.8,1906.7,1.04901]
[1742216975368,13.35980244,1906.8,1906.7,5.60871]
[1742216975664,9.65596244,1906.8,1906.7,4.5597]
[1742216976169,8.60700244,1906.8,1906.7,5.60871]
[1742216976367,9.65596244,1906.8,1906.7,4.5597]
[1742216976564,10.49099759,1906.8,1906.7,4.5597]
[1742216976763,9.44203759,1906.8,1906.7,4.5597]
[1742216977164,10.46995253,1906.8,1906.7,4.5597]
[1742216977358,11.51891253,1906.8,1906.7,4.5597]
[1742216977869,1.04901,1906.7,1906.6,4.118]
[1742216978171,7.55704759,1906.7,1906.6,4.118]
[1742216978372,8.58496253,1906.7,1906.6,8.6783]
[1742216978671,1.04907,1906.6,1906.5,10.48]
[1742216978869,10.76490759,1906.6,1906.5,10.48]
[1742216979067,9.71583759,1906.6,1906.5,11.52912]
[1742216979670,9.90871738,1906.6,1906.5,11.52912]
[1742216979866,9.71593835,1906.6,1906.5,11.52912]
[1742216980068,10.76500835,1906.6,1906.5,15.0141]
[1742216981272,11.79295338,1906.6,1906.5,15.0141]
[1742216982571,11.79295338,1906.6,1906.5,10.48]
[1742216983270,9.99601503,1906.6,1906.5,10.48]
[1742216983575,8.96807,1906.6,1906.5,10.48]
[1742216983973,10.76480067,1906.6,1906.5,10.48]
[1742216984170,10.95762083,1906.6,1906.5,10.48]
[1742216984475,10.95762083,1906.6,1906.5,15.0925]
[1742216984677,9.92975556,1906.6,1906.5,15.0925]
[1742216985079,10.76483125,1906.6,1906.5,10.48]
[1742216986166,11.79271433,1906.6,1906.5,10.48]
[1742216988484,1.04918,1906.4,1906.3,0.00786658]
[1742216988773,4.25698,1906.4,1906.3,0.00786658]
[1742216988975,6.05374125,1906.4,1906.3,0.00786658]
[1742216989178,10.53234125,1906.4,1906.3,0.00786658]
[1742216989480,11.56022433,1906.4,1906.3,0.00786658]
[1742216989781,11.64669377,1906.4,1906.3,0.00786658]
[1742216989977,11.56022433,1906.4,1906.3,0.00786658]
[1742216990972,11.64669371,1906.4,1906.3,0.00786658]
[1742216991974,11.64669316,1906.4,1906.3,0.00786658]
[1742216993779,11.64665502,1906.4,1906.3,0.00786658]
[1742216994576,11.56022433,1906.4,1906.3,0.00786658]
[1742216994782,11.56022433,1906.4,1906.3,4.87096658]
[1742216996380,11.56022433,1906.4,1906.3,0.00786658]
[1742217000586,8.73558,1906.4,1906.3,0.00786658]
[1742217000984,4.25698,1906.4,1906.3,0.00786658]
[1742217001285,10.73900381,1906.4,1906.3,0.00786658]
[1742217002387,11.7669204,1906.4,1906.3,0.00786658]
[1742217002689,11.7669204,1906.4,1906.3,9.18326658]
[1742217002877,11.7669204,1906.4,1906.3,4.75956658]
[1742217003079,11.7669204,1906.4,1906.3,0.00786658]
[1742217003388,11.7669204,1906.4,1906.1,4.7517]
[1742217003389,1.04934,1906.1,1906.0,4.294]
[1742217003585,4.25714,1906.1,1906.0,4.294]
[1742217003784,45.14359188,1906.1,1906.0,4.294]
[1742217004089,47.8811804,1906.1,1906.0,4.294]
[1742217004384,52.57102987,1906.1,1906.0,4.294]
[1742217004580,1.02791659,1906.1,1906.0,5.3434]
[1742217004785,1.02791659,1906.1,1906.0,15.076]
[1742217005090,0.00786658,1906.2,1906.1,1.04934]
[1742217005278,0.00786658,1906.2,1906.1,9.63404]
[1742217005479,0.00786658,1906.2,1906.1,13.92804]
[1742217007380,0.00786658,1906.2,1906.1,16.42804]
[1742217007579,3.2078,1907.3,1906.2,2.62318]
[1742217007778,3.2078,1907.0,1906.7,2.62254]
[1742217007977,3.2078,1907.0,1906.9,1.0489]
[1742217008182,3.2078,1907.0,1906.8,13.8619]
[1742217008382,3.2078,1907.0,1906.9,8.9129]
[1742217008590,4.25665,1907.0,1906.9,8.9129]
[1742217009186,1.0489,1906.9,1906.8,4.294]
[1742217009380,5.6964,1906.9,1906.8,4.294]
[1742217009584,5.45292774,1906.9,1906.8,4.294]
[1742217009786,6.50182774,1906.9,1906.8,13.2059]
[1742217010087,47.30182774,1906.9,1906.8,9.0959]
[1742217011003,47.388304,1906.9,1906.8,9.0959]
[1742217011291,42.963604,1906.9,1906.8,9.0959]
[1742217011492,47.794104,1906.9,1906.8,9.0959]
[1742217011795,47.794104,1906.9,1906.8,2.93714251]
[1742217012694,46.76587626,1906.9,1906.8,7.84724251]
[1742217012891,40.88647626,1906.9,1906.8,8.89620251]
[1742217013497,27.45004332,1907.4,1907.1,1.04876]
[1742217013690,4.25658,1907.2,1907.1,4.109]
[1742217014186,9.16818,1907.2,1907.1,4.109]
[1742217014590,49.96818,1907.2,1907.1,4.109]
[1742217014794,50.99475214,1907.2,1907.1,4.109]
[1742217014999,1.04883,1907.1,1907.0,4.6041]
[1742217015197,6.98700214,1907.1,1907.0,4.6041]
[1742217016688,47.78700214,1907.1,1907.0,4.6041]
[1742217017292,1.04885,1907.0,1906.9,4.4631]
[1742217017493,9.92845868,1907.0,1906.9,9.1203]
[1742217017893,10.95503082,1907.0,1906.9,9.1203]
[1742217019003,9.92845868,1907.0,1906.9,9.1203]
[1742217020499,9.92845868,1907.0,1906.9,10.1692]
[1742217021100,3.2078,1907.0,1906.9,10.1692]
[1742217021398,3.2078,1907.0,1906.9,14.9383]
[1742217021697,24.24224332,1907.4,1907.3,1.04868]
[1742217021904,25.18004517,1907.4,1907.3,1.04868]
[1742217022290,67.02867517,1907.4,1907.3,5.51888]
[1742217022498,67.02867517,1907.4,1907.3,10.12758]
[1742217022693,67.02867517,1907.4,1907.3,9.0789]
[1742217022899,71.80945517,1907.4,1907.0,4.106]
[1742217023198,71.80945517,1907.4,1907.0,4.6087]
[1742217023199,1.04879,1907.1,1907.0,4.6087]
[1742217023503,4.25659,1907.1,1907.0,8.7147]
[1742217024103,5.19439185,1907.1,1907.0,8.7147]
[1742217024601,4.25659,1907.1,1907.0,9.76355]
[1742217025605,1.04879,1907.1,1907.0,9.76355]
[1742217025799,4.7565,1907.2,1907.0,8.7147]
[1742217025996,5.6939059,1907.2,1907.1,5.62969]
[1742217026196,4.25652,1907.3,1907.2,1.04874]
[1742217026396,5.19391431,1907.3,1907.2,4.5809]
[1742217026696,9.70281431,1907.3,1907.2,5.62964]
[1742217027298,9.70281431,1907.3,1907.2,4.5809]
[1742217028002,1.04879,1907.1,1907.0,5.15485]
[1742217028201,1.04879,1907.1,1907.0,8.874]
[1742217028391,1.04879,1907.1,1907.0,4.768]
[1742217028591,5.57069,1907.1,1907.0,5.81685]
[1742217029697,4.7065,1907.2,1907.1,1.04879]
[1742217030000,4.7065,1907.2,1907.1,9.92079]
[1742217030591,0.93770828,1907.3,1907.1,8.872]
[1742217030804,1.98638828,1907.3,1907.2,5.81674]
[1742217031102,1.98638828,1907.3,1907.2,4.768]
[1742217031300,6.91058828,1907.3,1907.2,4.768]
[1742217031706,1.04874,1907.2,1907.1,4.104]
[1742217032004,10.7401438,1907.2,1906.9,5.15186]
[1742217032203,1.04885,1907.0,1906.9,9.79616]
[1742217032605,47.64631634,1907.0,1906.9,8.7473]
[1742217032907,1.04896,1906.8,1906.7,4.11086658]
[1742217033201,1.04896,1906.8,1906.7,9.80417658]
[1742217033509,1.98729944,1906.8,1906.7,9.80417658]
[1742217034002,2.62254,1906.7,1906.3,29.1]
[1742217034305,1.04918,1906.4,1906.3,37.8473]
[1742217034902,0.93908816,1906.4,1906.3,38.89653]
[1742217035101,4.6872,1906.4,1906.3,38.89653]
[1742217035401,5.73638,1906.4,1906.3,38.89653]
[1742217036499,5.73638,1906.4,1906.3,29.1]
[1742217036500,9.74887496,1906.4,1906.3,29.1]
[1742217036701,9.74887496,1906.4,1906.2,9.24366658]